bitfinex/quotes_ETHUSD_20250328
["timestamp","ask_amount","ask_price","bid_price","bid_amount"]
[1743182829325,5.32693,1877.3,1877.1,0.10484376]
[1743182829535,5.32708,1877.2,1877.1,0.86064376]
[1743182829734,5.32708,1877.2,1877.1,0.10484376]
[1743182829901,5.32708,1877.2,1876.9,0.825]
[1743182830104,5.32752,1877.1,1876.9,0.825]
[1743182830312,5.32752,1877.1,1877.0,0.10555442]
[1743182832008,5.32689,1877.3,1877.0,0.10555442]
[1743182832335,10.65438,1877.2,1877.0,0.10555442]
[1743182832526,10.6544,1877.2,1877.0,0.10555442]
[1743182832723,5.32736,1877.1,1877.0,0.10555442]
[1743182833130,5.3271,1877.2,1877.0,0.10555442]
[1743182833522,10.65442,1877.2,1877.0,0.10555442]
[1743182833729,5.3271,1877.2,1877.0,0.10555442]
[1743182833929,5.32682,1877.3,1877.0,0.10555442]
[1743182834132,5.32633,1877.5,1877.1,0.8111]
[1743182834320,10.65276,1877.5,1877.1,0.8111]
[1743182834521,5.32633,1877.5,1877.1,0.8111]
[1743182834710,5.32679,1877.3,1877.2,0.10568367]
[1743182835117,5.32674,1877.4,1877.1,0.8111]
[1743182835322,5.32679,1877.3,1877.2,0.10568367]
[1743182835621,5.32667,1877.4,1877.1,0.8111]
[1743182835821,5.32667,1877.4,1877.2,0.10568367]
[1743182836018,5.32667,1877.4,1877.1,0.8111]
[1743182836219,5.32694,1877.3,1877.2,0.10568367]
[1743182836419,5.32727,1877.2,1876.9,1.5996]
[1743182836649,10.65453,1877.2,1877.0,0.10568367]
[1743182836937,5.32736,1877.1,1877.0,0.10568367]
[1743182837435,10.65455,1877.2,1876.9,1.5996]
[1743182837636,5.32753,1877.1,1877.0,0.10568367]
[1743182838039,5.32765,1877.0,1876.9,0.825]
[1743182838247,5.32765,1877.0,1876.9,0.93068367]
[1743182838422,5.32765,1877.0,1876.9,0.825]
[1743182839035,5.32765,1877.0,1876.9,1.68868367]
[1743182839410,0.7405,1877.4,1876.9,1.68868367]
[1743182839611,5.32681,1877.3,1876.9,1.68868367]
[1743182839960,5.32681,1877.3,1876.9,2.38805204]
[1743182840167,5.32656,1877.4,1876.9,4.63005204]
[1743182840464,10.65327,1877.4,1877.0,0.758]
[1743182840623,5.32639,1877.5,1877.0,0.758]
[1743182840820,5.32639,1877.5,1877.1,0.10678213]
[1743182841025,10.65282,1877.5,1877.2,0.758]
[1743182841322,10.65282,1877.5,1877.3,0.10678213]
[1743182841323,6.06689,1877.5,1877.3,0.10678213]
[1743182841532,5.32651,1877.4,1877.3,0.10678213]
[1743182841740,10.65279,1877.5,1877.0,0.758]
[1743182842336,5.32595,1877.6,1877.2,0.7733]
[1743182842650,5.32604,1877.6,1877.2,0.7733]
[1743182842846,5.32623,1877.5,1877.3,0.10581289]
[1743182843421,5.32604,1877.6,1877.3,0.10581289]
[1743182843837,5.32542,1877.8,1877.3,0.10581289]
[1743182844039,5.32582,1877.7,1877.4,0.7905]
[1743182844238,10.65166,1877.7,1877.5,0.10413324]
[1743182844640,5.32594,1877.6,1877.5,0.10413324]
[1743182844837,5.32594,1877.6,1877.4,0.7905]
[1743182845160,10.65172,1877.7,1877.5,0.10413324]
[1743182845959,5.32541,1877.8,1877.5,0.10413324]
[1743182846133,5.3252,1877.9,1877.4,0.7905]
[1743182846334,5.3252,1877.9,1877.5,0.10413324]
[1743182846748,5.3252,1877.9,1877.6,0.8188]
[1743182846961,5.32454,1878.1,1877.7,0.09967636]
[1743182847258,5.3241,1878.3,1877.8,0.8188]
[1743182847462,5.32339,1878.5,1877.9,0.09967636]
[1743182847655,5.32473,1878.1,1877.8,6.1258]
[1743182847849,10.64951,1878.1,1877.9,0.09961178]
[1743182848032,5.32481,1878.0,1877.8,6.1258]
[1743182848769,5.32471,1878.1,1877.8,6.1258]
[1743182849059,5.32491,1878.0,1877.8,6.1258]
[1743182849265,5.32471,1878.1,1877.8,6.1258]
[1743182849662,5.32492,1878.0,1877.8,6.1258]
[1743182850454,5.32471,1878.1,1877.8,6.1258]
[1743182851137,10.64871,1878.2,1877.8,6.1258]
[1743182851338,5.32427,1878.2,1877.8,6.73838]
[1743182852036,5.3237,1878.4,1877.8,6.1258]
[1743182852236,5.32495,1878.0,1877.8,0.8188]
[1743182852637,10.64999,1878.0,1877.8,0.8188]
[1743182852831,5.32509,1877.9,1877.8,0.8188]
[1743182853037,5.32495,1878.0,1877.8,0.8188]
[1743182854361,5.32509,1877.9,1877.6,6.0858]
[1743182854741,10.65096,1877.8,1877.6,6.0838]
[1743182854971,5.32539,1877.8,1877.6,6.0838]
[1743182855757,10.65041,1877.9,1877.6,6.0838]
[1743182855959,5.32513,1877.9,1877.6,6.0838]
[1743182856161,5.32539,1877.8,1877.6,6.0838]
[1743182856357,5.32566,1877.7,1877.6,0.7868]
[1743182856561,10.65155,1877.7,1877.3,5.291]
[1743182856761,10.65155,1877.7,1877.3,5.89518]
[1743182856949,5.32566,1877.7,1877.3,5.89518]
[1743182857461,5.32566,1877.7,1877.4,0.7547]
[1743182858868,10.65087,1877.8,1877.4,0.7547]
[1743182859369,5.32538,1877.8,1877.4,0.7547]
[1743182859592,5.32512,1877.9,1877.4,1.419688]
[1743182859749,5.32547,1877.8,1877.5,0.8103]
[1743182861253,10.65104,1877.8,1877.5,0.8103]
[1743182861482,5.32547,1877.8,1877.5,0.8103]
[1743182861855,11.38547,1877.8,1877.5,0.8103]
[1743182862699,16.71102,1877.8,1877.5,0.8103]
[1743182863166,11.38547,1877.8,1877.5,0.8103]
[1743182863377,16.71101,1877.8,1877.5,0.8103]
[1743182863679,5.32566,1877.7,1877.5,0.8103]
[1743182864151,6.06,1877.8,1877.5,0.8103]
[1743182864353,6.06,1877.8,1877.3,0.8034]
[1743182864354,9.17249259,1877.7,1877.3,0.8034]
[1743182864562,5.32708,1877.2,1877.1,0.8034]
[1743182864793,5.32708,1877.2,1877.0,0.8034]
[1743182865492,5.32736,1877.1,1877.0,0.8034]
[1743182866251,5.32765,1877.0,1876.9,0.825]
[1743182866593,11.38765,1877.0,1876.9,0.825]
[1743182875293,6.06,1877.0,1876.9,1.7063745]
[1743182875687,11.38765,1877.0,1876.9,1.7063745]
[1743182876265,11.38765,1877.0,1876.9,0.9330745]
[1743182883281,11.38765,1877.0,1876.9,0.825]
[1743182884191,15.23436259,1877.0,1876.9,0.825]
[1743182884383,11.38765,1877.0,1876.9,0.825]
[1743182885121,16.52486259,1877.0,1876.9,0.825]
[1743182888233,5.32935,1876.4,1876.3,6.0736]
[1743182888527,11.38935,1876.4,1876.3,6.0736]
[1743182888990,11.38935,1876.4,1876.3,5.277]
[1743182889196,5.32992,1876.2,1876.1,6.1591]
[1743182889591,5.32992,1876.2,1876.1,0.8821]
[1743182889813,10.65957,1876.3,1876.1,0.8821]
[1743182890019,5.32992,1876.2,1876.1,0.8821]
[1743182890929,5.32992,1876.2,1876.1,0.05]
[1743182894138,11.38945,1876.4,1876.1,0.05]
[1743182894342,5.32972,1876.3,1876.1,0.05]
[1743182894833,6.06,1876.4,1876.1,0.05]
[1743182895130,6.06,1876.4,1876.2,6.1001]
[1743182895330,6.06,1876.4,1876.3,0.61001]
[1743182896204,6.06,1876.4,1876.3,5.3812198]
[1743182899735,6.06,1876.4,1876.3,6.1796198]
[1743182900233,4.8290625,1876.8,1876.4,3.8009]
[1743182900535,5.32797,1876.9,1876.5,0.91576195]
[1743182900710,5.32797,1876.9,1876.5,1.30733815]
[1743182900711,5.32832,1876.8,1876.5,1.30733815]
[1743182900916,5.32832,1876.8,1876.5,0.91576195]
[1743182902121,5.32858,1876.7,1876.6,5.253]
[1743182902317,5.32858,1876.7,1876.5,0.91576195]
[1743182902318,5.32878,1876.6,1876.5,6.16776195]
[1743182902523,5.32878,1876.6,1876.5,0.8009]
[1743182902910,5.32878,1876.6,1876.3,5.251]
[1743182903112,5.32821,1876.8,1876.3,6.0279]
[1743182903313,5.32909,1876.5,1876.3,6.0279]
[1743182903610,5.32909,1876.5,1876.3,6.63069]
[1743182903810,5.32903,1876.6,1876.3,6.63069]
[1743182904025,5.32856,1876.7,1876.3,6.63069]
[1743182904427,5.32824,1876.8,1876.3,6.63069]
[1743182904654,5.32852,1876.7,1876.3,6.63069]
[1743182904853,5.32852,1876.7,1876.4,0.663069]
[1743182905052,5.32879,1876.6,1876.4,0.663069]
[1743182905537,10.65859,1876.5,1876.3,0.7769]
[1743182905857,5.32922,1876.5,1876.3,6.0289]
[1743182906357,5.32992,1876.2,1876.1,0.05]
[1743182906655,6.07042,1876.2,1876.1,0.05]
[1743182908209,6.62042,1876.2,1876.1,0.05]
[1743182908414,10.46713259,1876.2,1876.1,0.05]
[1743182909424,5.33219,1875.4,1875.3,0.7859]
[1743182909745,5.33202,1875.5,1875.3,0.89869295]
[1743182910045,5.33219,1875.4,1875.3,1.51546225]
[1743182910214,5.33219,1875.4,1875.3,0.89869295]
[1743182911714,10.66463,1875.4,1875.2,0.7522]
[1743182911921,10.66463,1875.4,1875.3,0.1268298]
[1743182912221,5.33219,1875.4,1875.3,0.1268298]
[1743182915256,5.33192,1875.5,1875.3,0.1268298]
[1743182915638,10.66401,1875.5,1875.3,0.1268298]
[1743182916221,5.33219,1875.4,1875.3,0.1268298]
[1743182917261,5.33276,1875.2,1875.1,5.26]
[1743182917424,5.33276,1875.2,1875.1,5.38773599]
[1743182918653,5.33276,1875.2,1875.1,0.12773599]
[1743182919836,6.07243,1875.5,1874.9,0.1131755]
[1743182920029,5.33201,1875.5,1875.0,0.94743599]
[1743182920626,5.33223,1875.4,1875.0,0.94743599]
[1743182921551,5.33253,1875.3,1875.0,0.94743599]
[1743182921761,5.33248,1875.3,1875.0,0.94743599]
[1743182921959,5.33223,1875.4,1875.0,0.94743599]
[1743182922734,5.33168,1875.6,1875.0,1.00076222]
[1743182923061,6.07134,1875.9,1875.0,0.94743599]
[1743182923062,5.33191,1875.5,1875.0,0.94743599]
[1743182923445,5.33134,1875.7,1875.1,0.05332479]
[1743182923650,5.33111,1875.8,1875.2,6.20304215]
[1743182923854,10.66232,1875.8,1875.3,0.62030422]
[1743182924158,5.33079,1875.9,1875.4,0.792]
[1743182924828,5.33079,1875.9,1875.5,0.12799488]
[1743182925029,5.33079,1875.9,1875.6,5.256]
[1743182925227,5.33052,1876.0,1875.7,0.764]
[1743182925543,5.33052,1876.0,1875.8,0.12799488]
[1743182925855,10.66118,1876.0,1875.8,0.12799488]
[1743182926359,5.33036,1876.1,1875.8,0.12799488]
[1743182926572,5.3298,1876.3,1875.9,0.7838]
[1743182926870,5.33032,1876.1,1876.0,0.12644172]
[1743182927339,5.3294,1876.4,1876.0,0.12644172]
[1743182927671,5.32977,1876.3,1875.9,0.7838]
[1743182927875,5.32977,1876.3,1876.1,0.12585938]
[1743182928173,5.33001,1876.2,1876.0,5.253]
[1743182928326,5.33079,1875.9,1875.7,0.7953]
[1743182928529,5.33129,1875.8,1875.5,6.0553]
[1743182928730,5.33129,1875.8,1875.5,6.96083]
[1743182929144,5.33124,1875.8,1875.5,6.96083]
[1743182929344,5.33151,1875.7,1875.5,0.7953]
[1743182929580,5.33151,1875.7,1875.5,6.0533]
[1743182931781,5.33151,1875.7,1875.5,0.7953]
[1743182932000,10.66346,1875.6,1875.3,6.0058]
[1743182932304,5.33204,1875.5,1875.3,6.0058]
[1743182932909,5.33204,1875.5,1874.9,3.73216305]
[1743182932910,5.33242,1875.4,1875.1,0.7538]
[1743182933112,5.33242,1875.4,1875.1,6.0038]
[1743182933263,5.3326,1875.3,1875.1,6.0038]
[1743182933466,5.33242,1875.4,1875.1,6.0038]
[1743182933871,5.3325,1875.3,1875.1,6.0038]
[1743182936393,5.3325,1875.3,1875.1,6.0008]
[1743182937290,10.6646,1875.4,1875.1,6.0008]
[1743182937502,5.33224,1875.4,1875.1,6.0008]
[1743182937663,5.33248,1875.3,1875.1,6.0008]
[1743182938180,5.33224,1875.4,1875.1,6.0008]
[1743182938584,5.33256,1875.3,1875.1,6.0008]
[1743182938787,10.66526,1875.3,1875.1,6.0008]
[1743182939104,5.33276,1875.2,1874.9,0.1131755]
[1743182939273,5.33276,1875.2,1874.9,6.1509755]
[1743182939475,5.33276,1875.2,1874.9,0.9039755]
[1743182939678,5.33276,1875.2,1874.9,6.1509755]
[1743182940791,5.33212,1875.5,1874.9,6.1509755]
[1743182940970,5.33209,1875.5,1874.9,6.02860259]
[1743182941166,5.33234,1875.4,1875.0,0.8326]
[1743182941371,5.33253,1875.3,1875.0,0.95955938]
[1743182943117,5.33304,1875.1,1875.0,0.12695938]
[1743182943470,5.3329,1875.2,1875.0,0.12695938]
[1743182943817,5.33304,1875.1,1875.0,0.12695938]
[1743182944400,10.66463,1875.4,1875.0,0.12695938]
[1743182944562,5.3325,1875.3,1875.1,0.7689]
[1743182945196,5.3325,1875.3,1875.2,0.12890104]
[1743182945718,10.6662,1875.1,1874.9,6.1916755]
[1743182945894,10.66568,1875.2,1875.0,0.12890104]
[1743182946401,5.33304,1875.1,1875.0,0.12890104]
[1743182947307,5.33221,1875.4,1875.0,0.12890104]
[1743182947480,5.33184,1875.6,1875.0,0.12890104]
[1743182947481,10.66407,1875.5,1875.1,0.7592]
[1743182947676,5.33195,1875.5,1875.1,0.7592]
[1743182947883,5.3322,1875.4,1875.2,0.12954842]
[1743182948084,5.33248,1875.3,1875.2,0.12954842]
[1743182948700,5.33197,1875.5,1875.2,0.12954842]
[1743182948905,10.66292,1875.7,1875.2,0.12954842]
[1743182949204,10.66293,1875.7,1875.2,0.12954842]
[1743182949372,5.33167,1875.6,1875.2,5.37754842]
[1743182949572,5.33167,1875.6,1875.2,5.99122326]
[1743182950082,5.33139,1875.7,1875.2,5.99122326]
[1743182950278,5.33167,1875.6,1875.2,5.99122326]
[1743182950807,10.66285,1875.7,1875.3,0.8286]
[1743182951004,5.33165,1875.6,1875.3,0.8286]
[1743182951196,5.33165,1875.6,1875.4,0.1293542]
[1743182951511,5.3314,1875.7,1875.4,0.1293542]
[1743182951867,5.72569479,1876.0,1875.4,0.1293542]
[1743182951868,5.33059,1876.0,1875.5,0.88192342]
[1743182952091,5.33022,1876.1,1875.6,5.37586538]
[1743182952403,5.33022,1876.1,1875.6,6.00164426]
[1743182952574,10.6606,1876.1,1875.6,6.00164426]
[1743182953711,5.33052,1876.0,1875.6,6.00164426]
[1743182954930,5.33052,1876.0,1875.6,7.06492024]
[1743182955935,10.66065,1876.1,1875.6,7.06492024]
[1743182956108,5.33022,1876.1,1875.7,0.70649202]
[1743182956435,5.33022,1876.1,1875.8,0.91660066]
[1743182957727,5.3305,1876.0,1875.8,0.91660066]
[1743182958123,5.33022,1876.1,1875.8,0.91660066]
[1743182958422,10.66059,1876.1,1875.8,0.91660066]
[1743182959130,5.33051,1876.0,1875.8,0.91660066]
[1743182959796,5.33051,1876.0,1875.8,0.12780066]
[1743182960004,5.33077,1875.9,1875.8,0.12780066]
[1743182960229,5.33051,1876.0,1875.5,5.247]
[1743182960532,5.33022,1876.1,1875.6,1.43217647]
[1743182961313,5.33049,1876.0,1875.6,1.43217647]
[1743182961526,5.33022,1876.1,1875.6,1.43217647]
[1743182962131,10.66061,1876.1,1875.6,1.43217647]
[1743182962338,5.33022,1876.1,1875.6,1.43217647]
[1743182962502,10.66062,1876.1,1875.6,1.43217647]
[1743182962702,5.33049,1876.0,1875.6,1.43217647]
[1743182963636,5.33022,1876.1,1875.6,1.43217647]
[1743182963835,5.33022,1876.1,1875.6,2.4834803]
[1743182964313,5.33022,1876.1,1875.6,1.75129084]
[1743182964517,5.33022,1876.1,1875.7,0.7865]
[1743182964700,5.33022,1876.1,1875.7,0.90828238]
[1743182965045,5.3305,1876.0,1875.7,0.90828238]
[1743182965246,5.33022,1876.1,1875.7,0.90828238]
[1743182965543,5.33051,1876.0,1875.7,0.90828238]
[1743182965745,5.32995,1876.2,1875.7,0.90828238]
[1743182966145,5.32968,1876.3,1875.7,0.96158976]
[1743182966304,5.32938,1876.4,1875.8,0.7834]
[1743182966507,5.32977,1876.3,1875.9,6.0294]
[1743182966733,5.32939,1876.4,1876.0,0.12139424]
[1743182967239,5.32975,1876.3,1876.0,0.12139424]
[1743182967417,5.32993,1876.2,1876.0,0.12139424]
[1743182969338,5.32975,1876.3,1876.0,0.12139424]
[1743182969640,5.32936,1876.4,1876.1,0.8162]
[1743182969937,5.32936,1876.4,1876.2,0.11997103]
[1743182970110,5.32936,1876.4,1876.1,0.8162]
[1743182970310,5.32936,1876.4,1876.2,0.11997103]
[1743182970531,5.32936,1876.4,1876.1,0.8162]
[1743182970741,5.32936,1876.4,1876.2,0.11997103]
[1743182970929,5.32936,1876.4,1876.1,0.8162]
[1743182971126,5.32936,1876.4,1876.2,0.11997103]
[1743182971334,5.32973,1876.3,1876.1,0.8162]
[1743182971526,5.32992,1876.2,1876.0,5.246]
[1743182972541,10.65953,1876.3,1876.0,5.246]
[1743182972841,5.33002,1876.2,1876.0,5.246]
[1743182973138,10.66014,1876.2,1876.0,5.246]
[1743182973349,10.66014,1876.2,1875.9,1.83286083]
[1743182973504,5.33023,1876.1,1875.9,7.07886083]
[1743182973922,5.33023,1876.1,1875.9,6.0116]
[1743182974108,10.66062,1876.1,1875.9,6.0116]
[1743182976444,5.32998,1876.2,1875.9,6.61276]
[1743182977011,5.33047,1876.1,1875.8,0.8154]
[1743182977207,5.33033,1876.1,1875.8,6.0614]
[1743182977812,10.6608,1876.1,1875.8,6.0614]
[1743182978043,5.33051,1876.0,1875.8,6.0614]
[1743182978343,5.33032,1876.1,1875.8,6.66754]
[1743182978568,10.66068,1876.1,1875.8,6.66754]
[1743182979511,5.33077,1875.9,1875.8,1.42154]
[1743182979840,5.33077,1875.9,1875.8,6.0614]
[1743182980043,5.33051,1876.0,1875.8,6.0614]
[1743182980345,5.33077,1875.9,1875.8,6.18111224]
[1743182980644,5.33077,1875.9,1875.8,0.11971224]
[1743182981246,5.33114,1875.8,1875.6,6.0068]
[1743182981431,5.33077,1875.9,1875.6,6.60748]
[1743182982241,5.33106,1875.8,1875.6,6.60748]
[1743182982850,10.66166,1875.9,1875.6,6.60748]
[1743182983152,5.33106,1875.8,1875.6,6.60748]
[1743182983549,5.33077,1875.9,1875.6,6.60748]
[1743182983738,10.66171,1875.9,1875.6,6.60748]
[1743182984149,6.07108,1876.0,1875.6,6.60748]
[1743182984348,10.66172,1875.9,1875.6,6.60748]
[1743182984555,5.33078,1875.9,1875.7,0.660748]
[1743182984848,10.66171,1875.9,1875.7,0.660748]
[1743182985022,10.66171,1875.9,1875.6,0.7618]
[1743182985222,10.66171,1875.9,1875.6,6.0078]
[1743182985854,5.33078,1875.9,1875.6,6.0078]
[1743182986435,10.66174,1875.9,1875.7,0.1211355]
[1743182987126,5.33078,1875.9,1875.7,0.1211355]
[1743182987633,5.33054,1876.0,1875.7,0.1211355]
[1743182987950,10.66126,1876.0,1875.7,0.1211355]
[1743182988352,5.33003,1876.2,1875.8,0.7722]
[1743182988520,10.66013,1876.2,1875.8,0.7722]
[1743182988726,5.3302,1876.1,1875.9,0.12055322]
[1743182989135,5.33003,1876.2,1875.9,0.12055322]
[1743182989336,10.66011,1876.2,1875.9,0.12055322]
[1743182989659,5.33003,1876.2,1875.9,0.12055322]
[1743182990020,10.6601,1876.2,1875.9,0.12055322]
[1743182991150,5.33003,1876.2,1875.9,0.12055322]
[1743182991355,10.66012,1876.2,1875.9,0.12055322]
[1743182991737,10.66013,1876.2,1875.9,0.12055322]
[1743182991924,5.33003,1876.2,1875.9,0.12055322]
[1743182992965,5.32966,1876.3,1875.9,0.12055322]
[1743182992966,5.32955,1876.4,1875.9,0.17385951]
[1743182993171,5.32911,1876.5,1876.1,0.7659]
[1743182993333,10.65837,1876.5,1876.2,0.11997101]
[1743182993537,10.65837,1876.5,1876.1,0.7659]
[1743182994158,5.32911,1876.5,1876.1,0.7659]
[1743182994565,5.32846,1876.8,1876.2,0.7659]
[1743182994864,5.32851,1876.7,1876.3,0.11971227]
[1743182995560,5.32793,1876.9,1876.5,0.7713]
[1743182995863,10.65603,1876.9,1876.6,0.11790139]
[1743182996088,5.32793,1876.9,1876.6,0.11790139]
[1743182996569,5.32793,1876.9,1876.7,0.7717]
[1743182996749,5.32793,1876.9,1876.8,0.11583247]
[1743182998768,5.32825,1876.8,1876.5,1.37333]
[1743182998972,5.32825,1876.8,1876.6,0.11525071]
[1743182999569,5.32825,1876.8,1876.4,6.046]
[1743182999738,5.32825,1876.8,1876.5,0.71985071]
[1743182999939,10.65664,1876.8,1876.5,0.71985071]
[1743183000276,5.32825,1876.8,1876.5,0.71985071]
[1743183000845,10.65664,1876.8,1876.5,0.71985071]
[1743183001040,5.32825,1876.8,1876.5,0.71985071]
[1743183001261,10.65673,1876.8,1876.5,0.71985071]
[1743183001568,5.32825,1876.8,1876.5,0.71985071]
[1743183002377,5.32773,1877.0,1876.6,0.8117]
[1743183002739,5.32721,1877.2,1876.6,6.14036]
[1743183002939,5.32721,1877.2,1876.7,0.614036]
[1743183003144,5.32642,1877.5,1876.7,0.614036]
[1743183003145,0.7405,1877.5,1876.9,0.8117]
[1743183003357,5.32698,1877.3,1876.9,0.8117]
[1743183003758,5.32765,1877.0,1876.8,5.244]
[1743183003954,10.65671,1876.8,1876.5,6.17095071]
[1743183004254,0.7405,1877.0,1876.5,0.11525071]
[1743183004255,5.32878,1876.6,1876.5,0.11525071]
[1743183005976,5.32865,1876.7,1876.5,0.11525071]
[1743183006359,5.32826,1876.8,1876.5,0.11525071]
[1743183006555,5.32838,1876.8,1876.6,0.7596]
[1743183006755,5.32797,1876.9,1876.6,0.7596]
[1743183006951,5.3285,1876.7,1876.6,0.7596]
[1743183007152,5.3285,1876.7,1876.5,0.11525071]
[1743183007359,5.3285,1876.7,1876.5,5.35925071]
[1743183007560,5.32795,1876.9,1876.5,5.35925071]
[1743183007875,10.65606,1876.9,1876.6,0.7596]
[1743183008081,5.32795,1876.9,1876.6,0.7596]
[1743183008283,5.32768,1877.0,1876.6,0.7596]
[1743183008464,5.32768,1877.0,1876.6,1.43267358]
[1743183008983,10.6555,1877.0,1876.6,1.43267358]
[1743183009286,5.32798,1876.9,1876.6,1.43267358]
[1743183009881,10.65543,1877.0,1876.6,1.43267358]
[1743183010385,5.32726,1877.2,1876.8,0.7596]
[1743183010770,5.32662,1877.4,1877.0,0.7596]
[1743183010975,5.32689,1877.3,1877.0,1.35986]
[1743183011362,5.32644,1877.5,1877.0,0.60026]
[1743183011683,5.32594,1877.6,1877.1,0.7904]
[1743183011992,5.32708,1877.2,1876.9,0.7904]
[1743183012150,10.65493,1877.1,1876.9,0.7904]
[1743183012351,5.32736,1877.1,1876.9,0.7904]
[1743183012784,5.32765,1877.0,1876.8,5.243]
[1743183012954,10.65483,1877.1,1876.8,5.7673]
[1743183013154,5.32736,1877.1,1876.8,5.7673]
[1743183013354,10.65429,1877.2,1876.8,5.7673]
[1743183013587,5.3271,1877.2,1876.8,5.7673]
[1743183013885,5.32776,1877.0,1876.8,0.5243]
[1743183014089,5.32817,1876.9,1876.7,0.7904]
[1743183014292,6.06758,1877.2,1876.7,0.7904]
[1743183014293,5.32747,1877.1,1876.7,0.7904]
[1743183014498,10.65505,1877.1,1876.7,0.7904]
[1743183014654,5.32747,1877.1,1876.7,0.7904]
[1743183014997,5.32747,1877.1,1876.7,1.46104736]
[1743183015555,5.32747,1877.1,1876.8,0.8126]
[1743183015754,5.32708,1877.2,1876.8,0.8126]
[1743183015950,5.32689,1877.3,1876.8,0.8126]
[1743183016457,5.32689,1877.3,1876.9,0.8076]
[1743183016658,5.32651,1877.4,1877.1,0.8076]
[1743183016858,10.6532,1877.4,1877.1,0.8076]
[1743183017066,10.6532,1877.4,1877.1,1.41266]
[1743183017067,5.32651,1877.4,1877.1,1.41266]
[1743183017466,5.3268,1877.3,1877.1,1.41266]
[1743183018081,5.3268,1877.3,1877.2,0.10548984]
[1743183018454,5.32708,1877.2,1877.1,5.242]
[1743183018860,0.7405,1877.2,1876.7,1.50094736]
[1743183019062,6.06758,1877.2,1877.1,0.10503759]
[1743183019362,10.65558,1877.0,1876.8,5.242]
[1743183019672,10.65558,1877.0,1876.1,5.3302]
[1743183019673,5.32873,1876.7,1876.5,6.0563]
[1743183019890,5.32878,1876.6,1876.5,6.0563]
[1743183020066,5.32873,1876.7,1876.5,6.66193]
[1743183020407,5.32878,1876.6,1876.5,6.66193]
[1743183021106,10.65735,1876.7,1876.5,6.66193]
[1743183021475,5.32878,1876.6,1876.5,5.242]
[1743183022289,5.32867,1876.7,1876.5,5.242]
[1743183022504,5.32796,1876.9,1876.6,0.8042]
[1743183022681,5.32709,1877.2,1876.6,0.8042]
[1743183022888,5.32888,1876.6,1876.5,5.242]
[1743183023274,5.32924,1876.5,1876.3,0.8042]
[1743183023476,5.32924,1876.5,1876.3,6.0462]
[1743183024377,5.3288,1876.6,1876.3,6.0462]
[1743183024581,5.32851,1876.7,1876.3,6.0462]
[1743183024818,5.3288,1876.6,1876.3,6.0462]
[1743183025121,5.32851,1876.7,1876.4,0.60462]
[1743183025815,10.65727,1876.7,1876.4,0.60462]
[1743183025992,10.65722,1876.7,1876.4,0.60462]
[1743183026319,5.32851,1876.7,1876.4,0.60462]
[1743183026478,10.65665,1876.8,1876.4,0.60462]
[1743183026679,5.32784,1877.0,1876.5,0.7755]
[1743183026881,5.32741,1877.1,1876.7,0.7755]
[1743183027185,5.32793,1876.9,1876.8,5.242]
[1743183027522,5.32793,1876.9,1876.8,5.84375]
[1743183027691,5.32831,1876.8,1876.5,5.242]
[1743183028019,10.65737,1876.7,1876.5,5.242]
[1743183028523,5.32878,1876.6,1876.5,5.242]
[1743183028676,5.3294,1876.4,1876.3,5.242]
[1743183028877,5.32974,1876.3,1876.1,0.7962]
[1743183029078,5.33003,1876.2,1876.0,5.242]
[1743183029375,5.33003,1876.2,1876.1,0.5242]
[1743183029582,5.3302,1876.1,1876.0,5.242]
[1743183030016,5.33078,1875.9,1875.7,6.0462]
[1743183030224,5.33078,1875.9,1875.7,7.648844]
[1743183030425,5.33049,1876.0,1875.3,8.33232]
[1743183030426,5.33105,1875.8,1875.3,0.7608]
[1743183030604,5.33105,1875.8,1875.4,5.242]
[1743183030808,5.33146,1875.7,1875.5,0.5242]
[1743183031002,5.33146,1875.7,1875.5,5.242]
[1743183031324,5.33115,1875.8,1875.5,5.242]
[1743183031523,10.66246,1875.8,1875.5,5.242]
[1743183032021,5.33115,1875.8,1875.5,5.242]
[1743183032201,5.33115,1875.8,1875.6,0.7849]
[1743183032401,5.33115,1875.8,1875.5,5.242]
[1743183032606,10.66241,1875.8,1875.5,5.84469]
[1743183032904,5.33115,1875.8,1875.5,5.84469]
[1743183033221,0.7405,1875.7,1875.2,0.7849]
[1743183033427,5.33223,1875.4,1875.2,6.0279]
[1743183033794,10.6631,1875.7,1875.2,6.0279]
[1743183033989,5.33172,1875.6,1875.2,6.0279]
[1743183034193,5.33192,1875.5,1875.3,0.12016505]
[1743183035524,5.33195,1875.5,1875.3,0.12016505]
[1743183036339,10.66405,1875.5,1875.3,0.12016505]
[1743183036505,5.33219,1875.4,1875.3,0.12016505]
[1743183036694,5.33254,1875.3,1875.0,6.022]
[1743183036895,5.33254,1875.3,1875.0,6.63551755]
[1743183038532,5.33286,1875.2,1875.0,6.63551755]
[1743183038700,5.33304,1875.1,1875.0,6.022]
[1743183038903,5.33304,1875.1,1874.9,0.1131755]
[1743183038904,5.33333,1875.0,1874.9,5.3571755]
[1743183039301,5.33333,1875.0,1874.9,0.1131755]
[1743183040734,6.07383,1875.0,1874.9,0.1131755]
[1743183044016,9.07383,1875.0,1874.9,0.1131755]
[1743183046040,5.33333,1875.0,1874.9,0.1131755]
[1743183046742,5.33304,1875.1,1874.9,0.1131755]
[1743183046946,5.18304,1875.1,1874.9,0.1131755]
[1743183047113,10.51628,1875.1,1875.0,0.1372547]
[1743183047456,10.66573,1875.2,1875.0,0.1372547]
[1743183047748,5.33304,1875.1,1875.0,0.1372547]
[1743183049511,5.28304,1875.1,1875.0,0.1372547]
[1743183049712,5.33333,1875.0,1874.9,0.1131755]